{"text_format":"1","workbook":"xlsx","n_sheets":1,"sheets":["Лист1"],"not_rendered":{"charts":0,"images":5,"macros":0,"external_links":0,"defined_names":3,"comments":1,"pivot_tables":0},"unopened":[],"bounds":{"document_bytes":16777216,"sheet_cells":100000,"rows_first":2000,"rows_last":500,"rows_between":2000,"halvings":0,"cell_chars":16384,"cell_head_chars":4096},"cells_cut":0,"cells_raw":0,"read":"whole","date_system":"1900"}

{"sheet":"Лист1","index":0,"n_rows":79,"n_cols":20,"rows_kept":79,"cut":false,"hidden":false,"merged":[[18,7,18,10],[16,7,16,10],[20,7,20,10],[58,5,58,6],[59,5,59,6],[51,5,51,6],[52,5,52,6],[53,5,53,6],[54,5,54,6],[55,5,55,6],[56,5,56,6],[57,5,57,6],[45,5,45,6],[48,5,48,6],[50,5,50,6],[47,5,47,6],[29,5,29,6],[19,9,19,10],[72,5,72,6],[73,5,73,6],[74,5,74,6],[75,5,75,6],[60,5,60,6],[62,5,62,6],[63,5,63,6],[64,5,64,6],[65,5,65,6],[68,5,68,6],[71,5,71,6],[69,5,69,6],[70,5,70,6],[61,5,61,6],[66,5,66,6],[67,5,67,6],[39,5,39,6],[40,5,40,6],[41,5,41,6],[42,5,42,6],[43,5,43,6],[44,5,44,6],[62,3,62,4],[49,3,49,4],[40,3,40,4],[48,3,48,4],[30,5,30,6],[31,5,31,6],[32,5,32,6],[33,5,33,6],[34,5,34,6],[35,5,35,6],[37,5,37,6],[36,5,36,6],[38,5,38,6],[47,1,47,2],[47,3,47,4],[49,5,49,6],[46,5,46,6],[46,1,46,2],[46,3,46,4],[61,1,61,2],[61,3,61,4],[62,1,62,2],[48,1,48,2],[75,1,75,2],[45,1,45,2],[38,1,38,2],[38,3,38,4],[39,1,39,2],[39,3,39,4],[40,1,40,2],[45,3,45,4],[56,3,56,4],[63,1,63,2],[63,3,63,4],[52,1,52,2],[52,3,52,4],[70,1,70,2],[70,3,70,4],[68,1,68,2],[68,3,68,4],[72,1,72,2],[72,3,72,4],[73,1,73,2],[73,3,73,4],[74,1,74,2],[74,3,74,4],[71,1,71,2],[71,3,71,4],[90,5,90,6],[87,5,87,6],[88,5,88,6],[76,6,76,7],[57,3,57,4],[75,3,75,4],[65,1,65,2],[65,3,65,4],[60,1,60,2],[60,3,60,4],[67,1,67,2],[57,1,57,2],[66,1,66,2],[85,5,85,6],[81,5,81,6],[82,5,82,6],[80,5,80,6],[77,5,79,10],[86,5,86,6],[83,5,83,6],[84,5,84,6],[89,5,89,6],[69,1,69,2],[69,3,69,4],[66,3,66,4],[58,1,58,2],[58,3,58,4],[54,1,54,2],[54,3,54,4],[67,3,67,4],[49,1,49,2],[55,1,55,2],[55,3,55,4],[51,1,51,2],[51,3,51,4],[50,1,50,2],[50,3,50,4],[64,1,64,2],[64,3,64,4],[53,1,53,2],[53,3,53,4],[59,1,59,2],[59,3,59,4],[56,1,56,2],[29,3,29,4],[29,1,29,2],[30,1,30,2],[30,3,30,4],[31,1,31,2],[31,3,31,4],[32,1,32,2],[32,3,32,4],[33,1,33,2],[33,3,33,4],[34,1,34,2],[34,3,34,4],[35,1,35,2],[35,3,35,4],[36,1,36,2],[36,3,36,4],[37,1,37,2],[37,3,37,4],[44,1,44,2],[44,3,44,4],[41,3,41,4],[42,1,42,2],[42,3,42,4],[43,1,43,2],[43,3,43,4],[41,1,41,2],[26,0,27,4],[23,0,25,3],[21,5,27,10],[13,2,13,5],[14,0,14,1],[21,0,21,2],[20,0,20,1],[14,2,14,6],[15,2,15,6],[15,8,15,10],[17,2,17,6],[18,2,18,6],[19,2,19,6],[20,2,20,6],[18,0,18,1],[19,0,19,1],[16,2,16,6],[15,0,15,1],[16,0,16,1],[17,0,17,1],[14,7,14,8],[19,7,19,8],[17,9,17,10],[14,9,14,10]]}
[null,null,null,null,null,null,null,null,null,null,null,null,null,"Да","Изберете област","Изберете област","Колона1","Колона2",null,"Изберете място"]
[null,null,null,null,null,null,null,null,null,null,null,null,null,"Не","Благоевград ",null,"Изберете област","След  попълване на необходимите бройки сумите се изчисляват автоматично. \nЗаявката може да изтеглите и изпратите на имейл адреса на информационния център във Вашата област или да направите поръчка по телефона.",null,"В инф. център"]
[null,null,null,null,null,null,null,null,null,null,null,null,null,"Не","Бургас ",null,"Благоевград ","гр. Благоевград  2700\nбул. \"Св. св. Кирил и Методий\" № 24\nblagoevgrad@prosveta.bg\nДанаил Иванов -  0884 110 402\nЙордан Иванов -  0884 110 807\n",null,"В училище"]
[null,null,null,null,null,null,null,null,null,null,null,null,null,null,"Варна ",null,"Бургас ","гр. Бургас 8000\nул. „Св. Патриарх Евтимий” № 53\nтел.: 056 801 649\ne-mail: burgas@prosveta.bg\nЙовка Георгиева  - тел. 0884 110 382\nПепа Бакалова - тел. 0882 641 935\nИрина Стойчева - тел. 0884 110 805",null,"Изберете място"]
[null,null,null,null,null,null,null,null,null,null,null,null,null,null,"Велико Търново ",null,"Варна ","гр. Варна 9000\nул. „Сава Доброплодни” № 13\nтел. 052 640 047 \ne-mail: varna@prosveta.bg\nНеделчо Русев - тел. 0884 110 383 \nТихомир Марков ´- тел. 0884 603 184 \nМима Димитрова - тел. 0884 110 803 "]
[null,null,null,null,null,null,null,null,null,null,null,null,null,null,"Видин ",null,"Велико Търново ","гр. Велико Търново 5000\nул. „Симеон Велики” № 7\nтел.: 062 64 68 92\ne-mail: v.tarnovo@prosveta.bg\nЙордан Морчев  - тел. 0884 110 384\nДияна Димитрова  - тел. 0882 632 601"]
[null,null,null,null,null,null,null,null,null,null,null,null,null,null,"Враца ",null,"Видин ","гр. Видин 3700  \nул. „Търговска” № 33\nтел.: 094 600 039\ne-mail: vidin@prosveta.bg\nНели Станева - тел. 0884 110 385"]
[null,null,null,null,null,null,null,null,null,null,null,null,null,null,"Габрово ",null,"Враца ","гр. Враца 3000\nул. „Софроний Врачански” № 34\ne-mail: vratsa@prosveta.bg\nХристина Младенова - тел. 0884 110 386\nТихомир Томчовски - тел. 0884 430 852"]
[null,null,null,null,null,null,null,null,null,null,null,null,null,null,"Добрич ",null,"Габрово ","гр. Габрово 5306\nбул. „Стефан Караджа” № 17\ne-mail: gabrovo@prosveta.bg\nДимитър Димитров - тел. 0884 110 387"]
[null,null,null,null,null,null,null,null,null,null,null,null,null,null,"Кърджали ",null,"Добрич ","гр. Добрич 9300\nул. „Отец Паисий” № 16\ne-mail: dobrich@prosveta.bg\nРина Иванова - тел. 0884 110 388"]
[null,null,null,null,null,null,null,null,null,null,null,null,null,null,"Кюстендил ",null,"Кърджали ","гр. Кърджали 6600\nбул. „България” № 47, комплекс Орфей, партер\ne-mail: kardzhali@prosveta.bg\nНиколай Колев - тел. 0889 715 870\nДимитър Димитров - тел. 0884 110 389"]
[null,null,null,null,null,null,null,null,null,null,null,null,null,null,"Ловеч ",null,"Кюстендил ","гр. Кюстендил 2500\nул. „Любен Каравелов” № 3, ет. 2, офис 1\ne-mail: kyustendil@prosveta.bg\nКрасимир Паунски - тел. 0884 429 833"]
[null,null,null,null,null,null,null,null,null,null,null,null,null,null,"Монтана ",null,"Ловеч ","гр. Ловеч 5500\nул. „Оборище” № 2, бл. „Цачо Сяров”\ne-mail: lovech@prosveta.bg\nМарибела Дамянова - тел. 0884 110 391"]
[null,null,"Подал заявката:",null,null,null,null,{"$f":"IF($N$3=\"Да\",\"Допълнителни данни за фактура\",\"\")","v":""},null,null,null,null,null,null,"Пазарджик ",null,"Монтана ","гр. Монтана 3400\ne-mail: montana@prosveta.bg\nофис 1\nул. „Климент Охридски” № 16\nтел. 096 588 744\nофис 2\nбул. „Трети март” № 88\nЛора Старейшинска - тел. 0884 110 392"]
["Име:",null,null,null,null,null,null,{"$f":"IF($N$3=\"Да\",\"ЕИК по БУЛСТАТ:\",\"\")","v":""},null,null,null,null,null,null,"Перник ",null,"Пазарджик ","гр. Пазарджик 4400\nул. „Алеко Константинов” №12\nтел. 034 918 963 \ne-mail: pazardzhik@prosveta.bg\nЙонка Бунева - тел. 0884 430 846\nДесислава Кънчева - тел. 0884 889 000\nЙордан Чалъков - тел. 0878 564 540"]
["Област:",null,null,null,null,null,null,{"$f":"IF($N$3=\"Да\",\"МОЛ:\",\"\")","v":""},null,null,null,null,null,null,"Плевен ",null,"Перник ","e-mail: pernik@prosveta.bg \nтел. 0884 110 394\nАделина Теофилова\n - тел. 0884 430 561"]
["Община:",null,null,null,null,null,null,null,null,null,null,null,null,null,"Пловдив ",null,"Плевен ","гр. Плевен 5800\nул. „Дойран” № 140 \nтел. 064 807 662\ne-mail: pleven@prosveta.bg\nБисерка Илиева - тел. 0882 536 598\nСимеон Шабански - тел. 0884 110 393\nЦветан Кръстев - тел. 0884 430 918\n"]
["Населено място:",null,null,null,null,null,null,{"$f":"IF($N$3=\"Да\",\"Получател:\",\"\")","v":""},null,null,null,null,null,null,"Разград ",null,"Пловдив ","гр. Пловдив 4000, ул. „Свищов” № 6,тел. 032 650 998\ne-mail: plovdiv@prosveta.bg\nКрасимира Брайкова - тел. 0884 110 396\nРумен Радев - тел. 0884 110 802\nПетю Вълков - тел. 0884 429 805\nВелю Недялков - тел. 0884 429 608\nСветла Данева - тел. 0882 450 509\nЕмилия Аджова - тел. 0884 107 056\n"]
["Училище:",null,null,null,null,null,null,null,null,null,null,null,null,null,"Русе ",null,"Разград ","гр. Разград 7200\nул. „Велико Търново” №15, Офис 1\ne-mail: razgrad@prosveta.bg\nДимитрина Аврамова - тел. 0884 110 397"]
["Телефон \nза връзка:",null,null,null,null,null,null,{"$f":"IF($N$3=\"Да\",\"Адрес за фактура:\",\"\")","v":""},null,null,null,null,null,null,"Силистра ",null,"Русе ","гр. Русе 7000\nул. „Плиска” № 83, бл. „Венера”, вх. Б, ап. 42\nтел. 082 845 860\ne-mail: russe@prosveta.bg\nТодор Йорданов -тел. 0884 110 398\nГюлден Таракчиева -тел. 0884 430 978"]
["Е-mail:",null,null,null,null,null,null,null,null,null,null,null,null,null,"Сливен ",null,"Силистра ","гр. Силистра 7500\nул. „Петър Вичев” № 23\nтел. 086 821 907, факс: 086 588 503\ne-mail: silistra@prosveta.bg\nСтефка Стоянова -тел. 0884 110 399"]
["Желаете ли фактура?",null,null,null,null,{"$f":"VLOOKUP(P1,Лист1!$Q$2:$R$30,2,0)","v":"След  попълване на необходимите бройки сумите се изчисляват автоматично. \nЗаявката може да изтеглите и изпратите на имейл адреса на информационния център във Вашата област или да направите поръчка по телефона."},null,null,null,null,null,null,null,null,"Смолян ",null,"Сливен ","гр. Сливен 8800\nбул. „Братя Миладинови” № 18\ne-mail: sliven@prosveta.bg\nЗлатка Върбановска - тел. 0884 110 400"]
[null,null,null,null,null,null,null,null,null,null,null,null,null,null,"София град ",null,"Смолян ","e-mail: smolyan@prosveta.bg\nАна Николова -  тел. 0884 110 401 "]
["До Информационен център на издателска група \"Просвета\"\nв област: ",null,null,null,null,null,null,null,null,null,null,null,null,null,"София област ",null,"София град ","гр. София 1124, ул. „Цар Иван Асен II” № 39, e-mail: sofia@prosveta.bg, тел.  02 923 18 51, 02 923 18 52, 02 923 18 47,\n 0884 110 810, 0889 309 931, 0884 865 611"]
[null,null,null,null,null,null,null,null,null,null,null,null,null,null,"Стара Загора ",null,"София област ","гр. София 1124, ул. „Цар Иван Асен II” № 39, e-mail: sofia@prosveta.bg, тел.  02 923 18 51, 02 923 18 52, 02 923 18 47,\n 0884 110 810, 0889 309 931, 0884 865 612"]
[null,null,null,null,null,null,null,null,null,null,null,null,null,null,"Търговище ",null,"Стара Загора ","гр. Стара Загора 6000, ул. „Сава Силов” № 72\ne-mail: s.zagora@prosveta.bg\nДонка Стоянова - тел. 0884 110 395\nНиколай Колев - тел. 0882 241 890\nМитко Милчев - тел. 0884 809 990\nТинка Иванова - тел. 0884 430 698\nСтефан Чергев - тел. 0888 551 085"]
["Желая да получа \n         заявеното в:  ",null,null,null,null,null,null,null,null,null,null,null,null,null,"Хасково ",null,"Търговище ","гр. Търговище 7700\nтел. 0884 110 404\ne-mail: targovishte@prosveta.bg"]
[null,null,null,null,null,null,null,null,null,null,null,null,null,null,"Шумен ",null,"Хасково ","гр. Хасково 6300\nул. „Васил Друмев” № 13\ne-mail: haskovo@prosveta.bg\nАнтоанета Андонова - тел. 0885 888 287\nEлена Тонева -  тел. 0884 110 405\nКамен Василев - тел. 0884 156 892"]
[null,null,null,null,null,null,null,null,null,null,null,null,null,null,"Ямбол ",null,"Шумен ","гр. Шумен 9700\nбул. „Симеон Велики” № 68\nтел. 054 802 235\ne-mail: shumen@prosveta.bg\nПламен Маджаров - тел. 0884 110 406\nЙорданка Димова -тел. 0884 110 390 "]
["№","Учебник/Учебно помагало",null,"Авторски колектив",null,"Издателство","Брой","Единична цена","Брой","% отсъпка","Обща стой-\nност",null,null,null,null,null,"Ямбол ","гр. Ямбол\nул. „Цар Самуил” № 76.\ne-mail: yambol@prosveta.bg\nВиолета Данева - тел. 0884 110 407\nДимитър Димитров - тел. 0883 480 643"]
[1,"Български език за 9. клас",null,"Весела Михайлова и др.",null,"Просвета - София АД",null,9,null,{"$f":"IF(I31<15,10%,IF($T$4=\"В инф. център\",22%,IF($T$4=\"В училище\",17%,\"изберете място\")))","v":0.1},{"$f":"(I31*H31)-(H31*I31*J31)","v":0}]
[2,"Български език за 9. клас",null,"Милена Васева и др.",null,"Просвета Азбуки ЕООД",null,12,null,{"$f":"IF(I32<15,10%,IF($T$4=\"В инф. център\",22%,IF($T$4=\"В училище\",17%,\"изберете място\")))","v":0.1},{"$f":"(I32*H32)-(H32*I32*J32)","v":0}]
[3,"Литература за 9. клас",null,"Албена Хранова и др. ",null,"Просвета - София АД",null,14,null,0.1,0]
[4,"Работни листове по български език и литература за 9. клас",null,"Ангелина Недева и др",null,"Просвета - София АД",null,5.9,null,0.1,0]
[5,"Българският език в правила и задачи за гимназисти и зрелостници ",null,"Руска Станчева и др. ",null,"Просвета - София АД",null,5.9,null,{"$f":"IF(I35<15,10%,IF($T$4=\"В инф. център\",20%,IF($T$4=\"В училище\",15%,\"изберете място\")))","v":0.1},0]
[6,"Как да се справя с есе и тест стъпка по стъпка. Помагало за гимназисти и кадидат-студенти",null,"Евгени Зашев и др.",null,"Просвета - София АД",null,12,null,{"$f":"IF(I36<15,10%,IF($T$4=\"В инф. център\",20%,IF($T$4=\"В училище\",15%,\"изберете място\")))","v":0.1},0]
[7,"Математика за 9. клас",null,"Кирил Банков и др.",null,"Просвета - София АД",null,12.9,null,0.1,0]
[8,"Информационни технологии за 9. клас",null,"Николина Николова и др.",null,"Просвета - София АД",null,9,null,0.1,0]
[11,"История и цивилизации за 9. клас",null,"Михаил Груев и др.",null,"Просвета - София АД",null,16.899999999999999,null,0.1,0]
[12,"Тетрадка по история и цивилизации за 9. клас ",null,"Борис Стоянов и др.",null,"Просвета - София АД",null,4.9000000000000004,null,0.1,0]
[13,"История и цивилизации за 9. клас",null,"Георги Марков и др.",null,"Просвета Азбуки ЕООД",null,16,null,0.1,0]
[14,"Работни листове по история и цивилизации за 9. клас",null,"Екатерина Михайлова и др. ",null,"Просвета - София АД",null,4.9000000000000004,null,0.1,0]
[15,"Философия за 9. клас",null,"Евелина Варджийска и др.",null,"Просвета - София АД",null,14,null,0.1,0]
[18,"География и икономика за 9. клас ",null,"Стела Дерменджиева и др. ",null,"Просвета - София АД",null,14.9,null,0.1,0]
[19,"Тематични листове по география и икономика за 9. клас ",null,"Стела Дерменджиева и др. ",null,"Просвета - София АД",null,4.9000000000000004,null,0.1,0]
[21,"Биология и здравно образование за 9. клас ",null,"Майя Маркова и др.",null,"Просвета - София АД",null,12,null,0.1,0]
[23,"Биология и здравно образование за 9. клас ",null,"Василий Ишев и др.",null,"Просвета Азбуки ЕООД",null,14,null,0.1,0]
[27,"Химия и опазване на околната среда за 9. клас",null,"Донка Ташева, Стефан Манев и др.",null,"Просвета - София АД",null,12,null,0.1,0]
[28,"Тетрадка по химия и опазване на околната среда за 9. клас ",null,"Донка Ташева, Стефан Манев и др.",null,"Просвета - София АД",null,4.9000000000000004,null,0.1,0]
[31,"Химия и опазване на околната среда за 9. клас ",null,"Лиляна Боянова и др.",null,"Просвета плюс ЕООД",null,12.5,null,0.1,0]
[32,"Тетрадка по химия и опазване на околната среда за 9. клас ",null,"Лиляна Боянова и др.",null,"Просвета плюс ЕООД",null,4.9000000000000004,null,0.1,0]
[35,"Физика и астрономия за 9. клас ",null,"Виктор Иванов и др.",null,"Просвета - София АД",null,10,null,0.1,0]
[36,"Тетрадка по физика и астрономия за 9. клас",null,"Виктор Иванов и др. ",null,"Просвета - София АД",null,3.9,null,0.1,0]
[37,"Музика за 9. клас",null,"Лозанка Пейчева и др.",null,"Просвета - София АД",null,8.9,null,0.1,0]
[38,"Изобразително изкуство за 9. клас",null,"Петер Цанев и др.",null,"Просвета - София АД",null,9,null,0.1,0]
[39,"Изобразително изкуство за 9. клас",null,"Мариана Мойнова и др.",null,"Просвета плюс ЕООД",null,9,null,0.1,0]
[40,"Технологии и предприемачество за 9. клас",null,"Весела Неделчева и др. ",null,"Просвета - София АД",null,14,null,0.1,0]
[41,"Teen zone (A2.1) Английски език за 9. клас",null,"Десислава Петкова и др. ",null,"Просвета - София АД",null,12,null,0.1,0]
[42,"Teen zone (A2.1) Работна тетрадка по английски език за 9. клас",null,"Десислава Петкова и др.",null,"Просвета - София АД",null,2.9,null,0.1,0]
[43,"Teen zone  (A1) Английски език за 9 и 10. клас (втори чужд език)",null,"Десислава Петкова и др.",null,"Просвета - София АД",null,12,null,0.1,{"$f":"(I60*H60)-(H60*I60*J60)","v":0}]
[44,"Teen zone (A1) Работна тетрадка по английски език за 9. и 10. клас   (втори чужд език)",null,"Десислава Петкова и др.",null,"Просвета - София АД",null,5.9,null,0.1,{"$f":"(I61*H61)-(H61*I61*J61)","v":0}]
[45,"For Real (В1.1) Английски език за 8. клас (интензивно/разширено изучаване)",null,"Мартин Хобс и др.",null,"Просвета - София АД",null,29,null,{"$f":"IF(I62<15,10%,IF($T$4=\"В инф. център\",20%,IF($T$4=\"В училище\",20%,\"изберете място\")))","v":0.1},0]
[46,"For Real (В1.1) Работна тетрадка по английски език за 8. клас  (интензивно /разширено изучаване)",null,"Мартин Хобс и др.",null,"Просвета - София АД",null,12,null,{"$f":"IF(I63<15,10%,IF($T$4=\"В инф. център\",20%,IF($T$4=\"В училище\",20%,\"изберете място\")))","v":0.1},0]
[47,"For Real (В1) Английски език за 9. и 10. клас   (интензивно изучаване)",null,"Мартин Хобс и др.",null,"Просвета - София АД",null,29.9,null,{"$f":"IF(I64<15,10%,IF($T$4=\"В инф. център\",22%,IF($T$4=\"В училище\",22%,\"изберете място\")))","v":0.1},0]
[48,"For Real (В1) Работна тетрадка № 1 по английски език за 9. клас   (интензивно изучаване)",null,"Мартин Хобс и др.",null,"Просвета - София АД",null,11.9,null,{"$f":"IF(I65<15,10%,IF($T$4=\"В инф. център\",22%,IF($T$4=\"В училище\",22%,\"изберете място\")))","v":0.1},0]
[49,"Prima (A1.1) Немски език за 9. клас (втори чужд език)",null," Фридерике Джин и др.",null,"Просвета - София АД",null,19,null,{"$f":"IF(I66<15,10%,IF($T$4=\"В инф. център\",22%,IF($T$4=\"В училище\",17%,\"изберете място\")))","v":0.1},0]
[50,"Prima  (A1.1) Работна тетрадка по немски език за 9. клас (втори чужд език)",null," Фридерике Джин и др.",null,"Просвета - София АД",null,15,null,{"$f":"IF(I67<15,10%,IF($T$4=\"В инф. център\",22%,IF($T$4=\"В училище\",17%,\"изберете място\")))","v":0.1},0]
[51,"Prima (B1)  Немски език за 9. и 10. клас (интензивно изучаване)",null," Фридерике Джин и др.",null,"Просвета - София АД",null,35,null,{"$f":"IF(I68<15,10%,IF($T$4=\"В инф. център\",22%,IF($T$4=\"В училище\",22%,\"изберете място\")))","v":0.1},0]
[52,"Prima (B1)  Работна тетрадка по немски език за 9. клас  (интензивно изучаване)",null," Фридерике Джин и др.",null,"Просвета - София АД",null,12,null,0.1,0]
[53,"Привет! (А1.1) Руски език за 9. клас - (втори чужд език)",null,"Антония Радкова и др.",null,"Просвета - София АД",null,17,null,0.1,0]
[54,"Привет! (А1.1)Тетрадка по руски език за 9. клас (втори чужд език)",null,"Антония Радкова и др.",null,"Просвета - София АД",null,5.9,null,0.1,0]
[55,"Контакт. Наш адрес www.ru (В1). Руски език за 9. клас (интензивно изучаване)",null,"Елена Корчагина и др.",null,"Просвета - София АД",null,35,null,{"$f":"IF(I72<15,10%,IF($T$4=\"В инф. център\",22%,IF($T$4=\"В училище\",22%,\"изберете място\")))","v":0.1},0]
[56,"Контакт. Наш адрес www.ru (B1) Тетрадка по руски език за 9.  клас с (интензивно изучаване)",null,"Елена Корчагина и др.",null,"Просвета - София АД",null,9,null,{"$f":"IF(I73<15,10%,IF($T$4=\"В инф. център\",22%,IF($T$4=\"В училище\",22%,\"изберете място\")))","v":0.1},0]
[57,"Rallye 4 (B1) Френски език за 9.  клас (интензивно  изучаване)",null,"Радост Цанева и др",null,"Просвета - София АД",null,25,null,0.1,0]
[58,"Rallye 4 (B1) Тетрадка по френски език за 9.  клас  (интензивно изучаване)",null,"Радост Цанева и др",null,"Просвета - София АД",null,16.899999999999999,null,0.1,0]
[59,"250 упражнения по френски език \n(А1, А2, В1)",null,"Вера Владова и др.",null,"Просвета - София АД",null,15,null,{"$f":"IF(I76<15,10%,IF($T$4=\"В инф. център\",20%,IF($T$4=\"В училище\",15%,\"изберете място\")))","v":0.1},0]
[null,null,null,null,null,null,"ОБЩО СУМА:",null,{"$f":"SUM(I31:I76)","v":0},null,{"$f":"SUM(K31:K76)","v":0}]
[null,null,null,null,null,{"$f":"IF(I77>14,\"\",IF(I77=0,\"\",\"Заявката е само за колективна поръчка. Индивидуалните поръчки могат да се получат само в информационния център или да се поръчат на http://www.e-uchebnik.bg \"))","v":""}]
["Дата:"]